Cogmind - Beta 13 @@@ ROGUE MODE // 2024.04.01 @ 21:24:42 Player: MasterLemons Result: Destroyed by D-53 Grenadier with Mini Grenade Launcher Performance ------------- Evolutions (0) 0 Regions Visited (4) 800 Robots Destroyed (13) 65 Value Destroyed (287) 287 Prototype IDs (3) 60 Alien Tech Used (0) 0 Bonus (347) 347 TOTAL SCORE: 1559 Bonus ------- Follower Combat Kills 47 Aligned with FarCom 300 Cogmind --------- Core Integrity 0/250 Matter 213/300 Energy 250/250 System Corruption 5% Temperature Cool (0) Movement Walking (190) Ox1 Location -9/Mines Parts ------- > --- POWER (1) -------- Ion Engine > --- PROPULSION (2) --- Aluminum Leg > --- UTILITY (2) ------ Small Storage Unit > --- WEAPON (2) ------- Makeshift Axe > --- INVENTORY (8) ---- Ion Engine Superbattery (1500) Targeting Computer Propulsion Shielding Beam Cannon Peak State ------------ > --- POWER ------------ Light Nuclear Core > --- PROPULSION ------- Aluminum Leg Aluminum Leg > --- UTILITY ---------- Small Storage Unit Experimental Sensor Array > --- WEAPON ----------- Beam Cannon Rocket Launcher > --- INVENTORY -------- Ion Engine Ion Engine Aluminum Leg Superbattery Targeting Computer Propulsion Shielding Beam Cannon [Rating: 19] Favorites ----------- Power Ion Engine Engine Ion Engine Power Core Light Nuclear Core Propulsion Aluminum Leg Leg Aluminum Leg Utility Small Storage Unit Device Experimental Sensor Array Storage Small Storage Unit Protection Light Armor Plating Weapon Beam Cannon Energy Gun Medium Laser Energy Cannon Beam Cannon Launcher Rocket Launcher Slashing Weapon Makeshift Axe Build | -11 -10 -10 -10 -9 ------- Run | Yrd Mat Min Exi Min Slots Evolved . | . . . . . Power . | . . . . . Propulsion . | . . . . . Utility . | . . . . . Weapon . | . . . . . Parts Attached 23 | 6 2 6 4 5 Power 4 | 1 1 1 . 1 Engine 3 | 1 1 . . 1 Core 1 | . . 1 . . Reactor . | . . . . . Propulsion 4 | 2 . 1 . 1 Treads . | . . . . . Leg 4 | 2 . 1 . 1 Wheel . | . . . . . Hover . | . . . . . Flight . | . . . . . Utility 7 | 1 1 2 3 . Device 4 | . . 2 2 . Storage 2 | 1 . . 1 . Processor . | . . . . . Hackware . | . . . . . Protection 1 | . 1 . . . Artifact . | . . . . . Weapon 8 | 2 . 2 1 3 Energy Gun 2 | 2 . . . . Energy Cannon 4 | . . 2 1 1 Ballistic Gun . | . . . . . Ballistic Cannon . | . . . . . Launcher 1 | . . . . 1 Special Weapon . | . . . . . Impact Weapon . | . . . . . Slashing Weapon 1 | . . . . 1 Piercing Weapon . | . . . . . Special Melee Weapon . | . . . . . Unidentified Prototypes 3 | . . 1 2 . Parts Lost 7 | . 1 . . 6 Power 1 | . . . . 1 Propulsion 2 | . . . . 2 Utility 2 | . 1 . . 1 Weapon 2 | . . . . 2 Highest Loss Streak 4 | . 1 . . 4 To Critical Strikes . | . . . . . Average Slot Usage (%) 96 | . 92 97 99 91 Engine 7 | . 14 11 . 5 Core 5 | . . 2 14 4 Leg 27 | . 28 28 28 24 Device 11 | . . 11 13 14 Storage 14 | . 14 14 14 14 Energy Gun 4 | . 28 2 . . Energy Cannon 21 | . . 25 28 18 Launcher 1 | . . . . 9 Naked Turns . | . . . . . Heaviest Build 18 | 12 15 17 17 18 Greatest Support 20 | 20 20 20 20 20 Greatest Overweight (x) 1 | . . . . 1 Average Overweight (x) . | . . . . . Largest Inventory Capacity 8 | 8 8 8 8 8 Average Capacity 7 | 7 8 8 8 8 Most Carried 8 | 5 8 8 8 8 Average Carried 7 | 1 6 7 7 6 Final Capacity 8 | 8 8 8 8 8 Final Carried 8 | 1 8 8 8 5 Class Distribution -------------------- 85% | Mutant 14% | Skirmisher Dominant Class ---------------- Mutant | -10/Materials Mutant | -10/Mines Mutant | -10/Exiles Skirmisher | -9/Mines Resources | -11 -10 -10 -10 -9 ----------- Run | Yrd Mat Min Exi Min Matter Collected 467 | 232 125 60 . 50 Remotely . | . . . . . Salvage Created 413 | . 182 141 . 90 Parts 29 | . 9 10 . 10 Haulers Intercepted . | . . . . . Recyclers Shooed . | . . . . . Parts Field Recycled . | . . . . . Retrieved Matter . | . . . . . Parts Self-Destructed . | . . . . . Prevented . | . . . . . Kills | -11 -10 -10 -10 -9 ------- Run | Yrd Mat Min Exi Min Combat Hostiles Destroyed 23 | . 4 6 . 13 Guns 4 | . 4 . . . Cannons 11 | . . 6 . 5 AOE 8 | . . . . 8 Classes Destroyed 3 | . 1 1 . 1 Swarmer 7 | . . 4 . 3 Grunt 6 | . 4 2 . . Assembled 10 | . . . . 10 Best Kill Streak 10 | . 4 2 . 10 Combat Bots Only 10 | . 4 2 . 10 Max Kills in Single Turn 2 | . 2 1 . 2 Gunslinging 1 | . 1 . . . Exploded 2 | . . . . 2 Melee . | . . . . . Uniques/NPCs Destroyed . | . . . . . Combat | -11 -10 -10 -10 -9 -------- Run | Yrd Mat Min Exi Min Hostile Shots Fired 101 | . 13 39 . 49 Missed 25 | . 1 12 . 12 Damage Taken 1009 | . 131 259 . 619 Core 258 | . 46 68 . 144 Absorbed by Shields . | . . . . . Core Remaining (%) 100 | 100 . . . . Volleys Fired 54 | . 17 17 . 20 Largest 2 | . 2 2 . 2 Hottest 120 | . 100 120 . 120 Shots Fired 88 | . 21 34 . 33 Gun 21 | . 21 . . . Cannon 60 | . . 34 . 26 Launcher 7 | . . . . 7 Special . | . . . . . Kinetic . | . . . . . Thermal 81 | . 21 34 . 26 Explosive 7 | . . . . 7 Electromagnetic . | . . . . . Robot Hit Streak 6 | . 3 6 . 3 Robot Miss Streak 6 | . 3 4 . 6 Penetration Max . | . . . . . Secondary Targets 1 | . 1 . . . Max Gunslinging Chain 1 | . 1 . . . Shots Hit Robots 37 | . 10 15 . 12 Core Hits 36 | . 8 7 . 21 Critical Kills . | . . . . . Critical Parts Destroyed . | . . . . . Critical Strikes . | . . . . . Melee Attacks 1 | . . . . 1 Impact . | . . . . . Slashing 1 | . . . . 1 Piercing . | . . . . . Sneak Attacks . | . . . . . Combat Hostiles . | . . . . . Follow-up Attacks . | . . . . . Damage Inflicted 1109 | . 126 281 . 702 Guns 126 | . 126 . . . Cannons 475 | . . 281 . 194 Explosions 464 | . . . . 464 Melee 44 | . . . . 44 Ramming . | . . . . . Kinetic . | . . . . . Thermal 601 | . 126 281 . 194 Explosive 464 | . . . . 464 Electromagnetic . | . . . . . Impact . | . . . . . Slashing 44 | . . . . 44 Piercing . | . . . . . Highest Corruption 5 | . . . . 5 Average Corruption 5 | . . . . 5 Corruption Purged . | . . . . . Corruption Blocked . | . . . . . Effects 6 | . . . . 6 Message Errors 1 | . . . . 1 Heat Flow Errors 1 | . . . . 1 Energy Discharges 1 | . . . . 1 Data Loss (minor) 2 | . . . . 2 Data Loss (major) 1 | . . . . 1 Overload Shots . | . . . . . Overflow Damage 38 | . . 14 . 24 Projectiles 14 | . . 14 . . Explosions . | . . . . . Melee 24 | . . . . 24 Knockbacks . | . . . . . Impact . | . . . . . Kinetic . | . . . . . Secondary . | . . . . . Self-Inflicted Damage . | . . . . . Shots . | . . . . . Rammed . | . . . . . Targets Rammed . | . . . . . Kicked . | . . . . . Crushed . | . . . . . Highest Temperature 426 | . 426 295 . 420 Average Temperature 161 | . 243 103 . 164 Received Heat Transfer 192 | . 72 60 . 60 Effects 8 | . 5 . . 3 Shutdowns 1 | . 1 . . . Interference 4 | . 2 . . 2 Matter Decay 2 | . 2 . . . Short Circuit 1 | . . . . 1 Siege Activations . | . . . . . Robots Corrupted . | . . . . . Combat Hostiles . | . . . . . Parts Fried . | . . . . . Impact Corruptions . | . . . . . Robots Melted . | . . . . . Combat Hostiles . | . . . . . Parts Melted 2 | . 2 . . . Heat Transferred 1369 | . 370 592 . 407 Parts Sabotaged . | . . . . . Parts Stolen . | . . . . . Parts Stripped . | . . . . . Power Chain Reactions . | . . . . . Alert | -11 -10 -10 -10 -9 ------- Run | Yrd Mat Min Exi Min Peak Influence 149 | . 90 149 . 80 Initial 34 | . . 34 . . Average 78 | . 31 105 . 64 Maximum Alert Level . | . . . . . Low Security (%) 100 | 100 100 100 . 100 Level 1 . | . . . . . Level 2 . | . . . . . Level 3 . | . . . . . Level 4 . | . . . . . Level 5 . | . . . . . High Security . | . . . . . Max Security . | . . . . . Squads Dispatched 3 | . 3 . . . Investigation 2 | . 2 . . . Extermination . | . . . . . Reinforcement 1 | . 1 . . . Assault . | . . . . . Garrison . | . . . . . Intercept . | . . . . . Searches Triggered . | . . . . . Construction Impeded . | . . . . . Haulers Reinforced . | . . . . . Active Scanning Responses . | . . . . . Cargo Convoy Interrupts . | . . . . . Stealth | -11 -10 -10 -10 -9 --------- Run | Yrd Mat Min Exi Min Distress Signals . | . . . . . Communications Jammed . | . . . . . Distress Signals . | . . . . . Times Spotted 31 | . 5 11 . 15 Peak Tracking Total 6 | . 3 3 . 6 Tactical Retreats 2 | . . 1 . 1 Traps | -11 -10 -10 -10 -9 ------- Run | Yrd Mat Min Exi Min Traps Triggered 1 | . 1 . . . Indirectly . | . . . . . Trap Hack Attempts . | . . . . . Triggered . | . . . . . Disarmed . | . . . . . Reprogrammed . | . . . . . Reused . | . . . . . Traps Extracted . | . . . . . Installed . | . . . . . Triggered . | . . . . . Machines | -11 -10 -10 -10 -9 ---------- Run | Yrd Mat Min Exi Min Machines Disabled . | . . . . . Max in Single Turn . | . . . . . Machines Repaired . | . . . . . Machines Dismantled . | . . . . . Machines Sabotaged . | . . . . . Overloaded Fab Kills . | . . . . . Hacking | -11 -10 -10 -10 -9 --------- Run | Yrd Mat Min Exi Min Machines Accessed 2 | . 1 1 . . Terminals 2 | . 1 1 . . Fabricators . | . . . . . Repair Stations . | . . . . . Recycling Units . | . . . . . Scanalyzers . | . . . . . Garrison Access . | . . . . . Total Hacks 9 | . 4 5 . . Successful 6 | . 2 4 . . Failed 3 | . 2 1 . . Catastrophic . | . . . . . Database Lockouts . | . . . . . Manual 1 | . . . 1 . Terminals 9 | . 4 5 . . Fabricators . | . . . . . Repair Stations . | . . . . . Recycling Units . | . . . . . Scanalyzers . | . . . . . Garrison Access . | . . . . . Terminal Hacks 6 | . 2 4 . . Record 5 | . 2 3 . . Zone Layout 1 | . . 1 . . Fabricator Hacks . | . . . . . Repair Station Hacks . | . . . . . Recycling Unit Hacks . | . . . . . Scanalyzer . | . . . . . Garrison Access Hacks . | . . . . . Unauthorized Hacks . | . . . . . Terminals . | . . . . . Fabricators . | . . . . . Repair Stations . | . . . . . Recycling Units . | . . . . . Scanalyzers . | . . . . . Garrison Access . | . . . . . Data Cores Recovered . | . . . . . Used . | . . . . . Hacking Detections 1 | . 1 . . . Full Trace Events 1 | . 1 . . . Feedback Events . | . . . . . Feedback Blocked . | . . . . . Robot Schematics Acquired . | . . . . . Robots Built . | . . . . . Authchips . | . . . . . Time . | . . . . . Total Robot Build Rating . | . . . . . Part Schematics Acquired . | . . . . . Parts Built . | . . . . . Authchips . | . . . . . Time . | . . . . . Total Part Build Rating . | . . . . . Parts Repaired . | . . . . . Time . | . . . . . Parts Recycled . | . . . . . Recycled Matter . | . . . . . Retrieved Matter . | . . . . . Retrieved Components . | . . . . . Parts Scanalyzed . | . . . . . Part Schematics Acquired . | . . . . . Parts Damaged . | . . . . . Bothacking | -11 -10 -10 -10 -9 ------------ Run | Yrd Mat Min Exi Min Used RIF Installer . | . . . . . Robots Hacked . | . . . . . Non-combat . | . . . . . Combat . | . . . . . Robot Hacks Applied . | . . . . . Relay Couplers Released . | . . . . . Fabnet Peak Effective % . | . . . . . Robots Rewired . | . . . . . Allies Hacked . | . . . . . Hacks Repelled . | . . . . . Allies | -11 -10 -10 -10 -9 -------- Run | Yrd Mat Min Exi Min Total Allies 2 | . . 2 . . Largest Group 2 | . . 2 2 . Highest-Rated Group 43 | . . 43 43 . Highest-Rated Ally 31 | . . 31 31 . Total Orders . | . . . . . Ally Attacks 8 | . . 8 . . Total Damage 147 | . . 147 . . Kills 3 | . . 3 . . Allies Corrupted . | . . . . . Allies Melted . | . . . . . Intel | -11 -10 -10 -10 -9 ------- Run | Yrd Mat Min Exi Min Robot Analysis Total . | . . . . . Derelict Logs Recovered 1 | . . 1 . . Drone Launches . | . . . . . Drone Recoveries . | . . . . . Exploration | -11 -10 -10 -10 -9 ------------- Run | Yrd Mat Min Exi Min Turns Passed 1751 | 51 227 700 518 255 Spaces Moved 1241 | 44 147 507 421 122 Core 19 | 19 . . . . Treads . | . . . . . Legs 1222 | 25 147 507 421 122 Wheels . | . . . . . Hover . | . . . . . Flight . | . . . . . Fastest Speed 50 | 50 120 120 120 120 Average Speed 120 | 89 120 120 120 134 Slowest Speed 190 | 120 120 120 120 190 Overloaded Moves . | . . . . . Propulsion Burnouts . | . . . . . Robots Hopped . | . . . . . Cave-ins Triggered . | . . . . . Exploration Rate (%) 47 | 3 27 93 86 27 Regions Visited 4 Branch Regions 3 Pre-discovered Areas 2 | . . 2 . . Known Exits Taken . | . . . . . Unknown Exits Taken 4 | 1 1 1 1 . Scrap Searched . | . . . . . Spaces Dug . | . . . . . Terrain Destroyed 54 | . . . . 54 Melee . | . . . . . Projectile . | . . . . . AOE 54 | . . . . 54 Terrain Rammed . | . . . . . Walls Destroyed . | . . . . . Machines Disabled . | . . . . . Actions | -11 -10 -10 -10 -9 --------- Run | Yrd Mat Min Exi Min Total 1410 | 55 177 564 435 179 Wait 56 | . . 25 2 29 Move 1237 | 43 146 506 420 122 Hop . | . . . . . Pick Up 26 | 6 10 5 4 1 Fast Attach 3 | 1 . 1 1 . Attach 12 | 5 1 1 2 3 Detach . | . . . . . Swap 8 | . 1 4 1 2 Drop 13 | . 2 5 5 1 Fire 54 | . 17 17 . 20 Melee 1 | . . . . 1 Ram . | . . . . . Kick . | . . . . . Crush . | . . . . . Escape Stasis . | . . . . . Rewire . | . . . . . Trap . | . . . . . Miscellaneous . | . . . . . Route ------- -11/Scrapyard -10/Materials -10/Mines (discovered 3 exits: [*Mat x2] / *Exi) -10/Exiles -9/Mines History --------- Turn | Location | Event 4 | -11/Scrapyard | Discovered new exit (range 16) 52 | -11/Scrapyard | Entered Materials 267 | -10/Materials | Discovered new exit (range 11) 279 | -10/Materials | Entered Mines 307 | -10/Mines | Build established: Mutant 407 | -10/Mines | Learned location of Zion (-7) 416 | -10/Mines | Found a hidden stash of uninstalled traps 476 | -10/Mines | Found a damaged Exp. Sensor Array with a note attached 479 | -10/Mines | Found Prototype Device 480 | -10/Mines | Identified Exp. Sensor Array 509 | -10/Mines | Received a Rocket Launcher from a helpful Derelict 554 | -10/Mines | Discovered new exit (range 9) 737 | -10/Mines | Learned location of Storage (-9) 852 | -10/Mines | Joined a pair of Derelicts in attacking an 0b10 outpost 939 | -10/Mines | Discovered new exit (range 15) 974 | -10/Mines | Deemed a non-threat by the Exiles lab entrance 974 | -10/Mines | Discovered new exit (range 5) 979 | -10/Mines | Entered Exiles 979 | -10/Exiles | Accompanied by 2 allies 1008 | -10/Exiles | Met 8R-AWN 1009 | -10/Exiles | Led the pair of lost Derelicts to a safe place 1029 | -10/Exiles | Met EX-HEX 1063 | -10/Exiles | Met EX-BIN 1083 | -10/Exiles | Aligned with FarCom system 1084 | -10/Exiles | Given EX-Vault access code 1114 | -10/Exiles | Opened EX-Vault 1121 | -10/Exiles | Found Prototype Storage 1122 | -10/Exiles | Identified Superbattery 1126 | -10/Exiles | Found Prototype Device 1127 | -10/Exiles | Identified Trap Reconfigurator 1135 | -10/Exiles | Found Deploy-a-Sentry 1172 | -10/Exiles | Warned to stay clear of 0b10 Research branches 1209 | -10/Exiles | Met EX-DEC 1247 | -10/Exiles | Visited The Gauntlet 1483 | -10/Exiles | Discovered new exit (range 14) 1497 | -10/Exiles | Left Exiles lab with Superbattery 1497 | -10/Exiles | Entered Mines 1498 | -9/Mines | Assembled infested the area 1500 | -9/Mines | Core integrity fell below 50% 1519 | -9/Mines | Met a Derelict bent on vengeance 1623 | -9/Mines | A weapon hastily lodged in a ceiling crevice suddenly fell to the ground 1632 | -9/Mines | Destroyed 10 combat bots 1747 | -9/Mines | Core integrity fell below 20% 1752 | -9/Mines | Destroyed by D-53 Grenadier with Mini Grenade Launcher Last Messages --------------- 01617_ Overheating: System interference. 01617_ Beam Cannon temporarily disabled. 01617_ Exp. Sensor Array temporarily disabled. 01621_ K-01 Serf collects debris. 01623_ A Mak. Axe has been hastily shoved under some rubble with a note attached: "Chop chop!" 01625_ K-01 Serf collects debris. 01627_ Acquired Mak. Axe. 01629_ K-01 Serf collects debris. 01664_ System corrupted: Energy discharge (-25). 01681_ System corrupted: Component data lost. 01729_ TBEDAP TC=DEL%X3%BMMF&Z%SN0, 01746_ Laser Drill disabled. 01746_ Seismic Survey Station disabled. 01746_ Rocket Launcher destroyed. 01748_ Aluminum Leg destroyed. 01749_ Destroyed Shock Absorption System. 01750_ D-53 Grenadier destroyed. 01750_ Exp. Sensor Array destroyed. 01750_ Beam Cannon destroyed. Map ----- +----------------------------------------------------+ | ???????# #########????????????????????????????? | | ??????## #????????????????????????????????????? | | ?????## #????????????????????????????????????? | | ????## ##????????????????????????????????????? | | ????# ##????????????????????????????????????? | | ??### #####????????????????????????????????? | | ??# #????????????????????????????????? | | ??# # #????????????????????????????????? | | ?## ##### ##????????????????????????????????? | | ## ##???####?????????????????????????????????? | | # ##???????????????????????????????????????? | | ##??????????????????????????????????????? | | *% ##?????????????????????????????????????? | | ## ##???????????#####????????????????????? | | #### ##??????????# ????????????????????? | | #??# ##?????????# ?????????????????????? | | #### ##????????# #?????????????????????? | | ###??????# #?????????????????????? | | #### ##?????# #?????????????????????? | | #####??### ####### #####?????????????????? | | #????????## ## t #?????????????????? | | #?????????# ### #?????????????????? | | #?????????# ##?# #?????????????????? | | #?????????# #### " d #?????????????????? | | #?????????# " #?????????????????? | | ##?????????# " @ #?????????????????? | | ???????????####### #?????????????????? | | ?????????????????### #?????????????????? | | ???????????????????# #?????????????????? | | ???????????????????### ##?????????????????? | | | | | | | | | | | | | | | | | | | | | | | | | | | | | | | | | | | | | | | | | +----------------------------------------------------+ Best States ------------- Heat Dissipation 35 Energy Generation 14 Energy Capacity 250 Matter Stores 300 Matter Capacity 300 Sight Range 16 Robot Scan Range 20 Terrain Scan Density 10 Armor Coverage 150 Evasion (%) 55 Item Schematics ----------------- None Robot Schematics ------------------ None Fabricated ------------ Nothing Alien Tech Used ----------------- None Achievements -------------- None Challenges ------------ None Game ------ Seed ScatterCompactPlatform Manual? 0 Play Time 00:16:13 Cumulative 8.4 hours Start 2024.04.01 @ 21:07:23 End 2024.04.01 @ 21:24:42 Sessions 1 Manual Loads 0 Difficulty Rogue Special Mode None Game No. 25 Rogue 22 Adventurer 3 Explorer 0 Win Type - Total 0 Types 0/0/0/0/0/0/0/0/0 Lore% 14 Gallery% 15 Achievement% 17 Wizard Run 0 Options --------- Layout 1 ASCII 0 Keyboard 0 Movement Mouse Keybinds 0 Fullscreen 1 Font 32/SmallcapsGlow Map View 77x35 Zoom Use 0% Tactical HUD 1 Map Filters NONE Filters NONE Steam 1 RUN: 3be65734-6e5c-4c1d-bd49-0cc09d991ff1